fUSD/lending_fUSD_20260529
["ID","MTS","AMOUNT","RATE_DAILY","PERIOD"]
[423249271,1779994238000,-166.66,0.00013973,2]
[423249306,1779994238000,-2000.0,0.00014567,2]
[423249279,1779994238000,-500.0,0.0001423,2]
[423249309,1779994238000,-2500.0,0.00014633,2]
[423249351,1779994238000,-617.9013,0.0001485,2]
[423249350,1779994238000,-150.0,0.00014836,2]
[423249339,1779994238000,-500.0,0.00014764,2]
[423249342,1779994238000,-25000.0,0.00014777,3]
[423249341,1779994238000,-25000.0,0.00014768,3]
[423249347,1779994238000,-218.353,0.00014799,2]
[423249344,1779994238000,-350.0,0.00014785,2]
[423249343,1779994238000,-230.61190747,0.00014781,2]
[423249348,1779994238000,-230.61190747,0.00014804,2]
[423249345,1779994238000,-17666.9218,0.00014786,3]
[423249346,1779994238000,-652.693,0.00014799,2]
[423249349,1779994238000,-230.61190747,0.00014828,2]
[423249340,1779994238000,-2110.12454954,0.00014765,2]
[423249352,1779994238000,-617.90131,0.0001485,2]
[423249355,1779994238000,-230.61190747,0.00014876,2]
[423249361,1779994238000,-500.0,0.0001489,2]
[423249357,1779994238000,-500.0,0.0001489,2]
[423249354,1779994238000,-617.90131,0.0001486,2]
[423249360,1779994238000,-500.0,0.0001489,2]
[423249359,1779994238000,-500.0,0.0001489,2]
[423249353,1779994238000,-230.61190747,0.00014852,2]
[423249363,1779994238000,-500.0,0.0001489,2]
[423249356,1779994238000,-500.0,0.0001489,2]
[423249364,1779994238000,-388.93769863,0.0001489,2]
[423249366,1779994238000,-500.0,0.00014899,2]
[423249307,1779994238000,-188.09,0.00014567,2]
[423249362,1779994238000,-500.0,0.0001489,2]
[423249331,1779994238000,-500.0,0.00014764,2]
[423249358,1779994238000,-500.0,0.0001489,2]
[423249336,1779994238000,-500.0,0.00014764,2]
[423249308,1779994238000,-911.7,0.0001463,2]
[423249335,1779994238000,-500.0,0.00014764,2]
[423249310,1779994238000,-386.13,0.00014654,2]
[423249312,1779994238000,-230.61190755,0.00014685,2]
[423249314,1779994238000,-2110.12454954,0.00014698,2]
[423249316,1779994238000,-230.61190747,0.00014709,2]
[423249317,1779994238000,-2110.12454954,0.00014731,2]
[423249322,1779994238000,-500.0,0.0001475,2]
[423249318,1779994238000,-230.61190747,0.00014733,2]
[423249319,1779994238000,-25000.0,0.00014733,3]
[423249323,1779994238000,-500.0,0.0001475,2]
[423249324,1779994238000,-500.0,0.0001475,2]
[423249320,1779994238000,-25000.0,0.00014742,3]
[423249321,1779994238000,-763.4,0.0001475,2]
[423249315,1779994238000,-257.42,0.00014704,2]
[423249332,1779994238000,-500.0,0.00014764,2]
[423249337,1779994238000,-500.0,0.00014764,2]
[423249333,1779994238000,-500.0,0.00014764,2]
[423249334,1779994238000,-500.0,0.00014764,2]
[423249329,1779994238000,-500.0,0.00014764,2]
[423249330,1779994238000,-500.0,0.00014764,2]
[423249365,1779994238000,-500.0,0.0001489,2]
[423249327,1779994238000,-230.61190747,0.00014757,2]
[423249328,1779994238000,-25000.0,0.00014759,3]
[423249326,1779994238000,-25000.0,0.0001475,3]
[423249325,1779994238000,-500.0,0.0001475,2]
[423249338,1779994238000,-500.0,0.00014764,2]
[423249416,1779994239000,-500.0,0.00014999,2]
[423249408,1779994239000,-500.0,0.00014999,2]
[423249410,1779994239000,-500.0,0.00014999,2]
[423249413,1779994239000,-500.0,0.00014999,2]
[423249411,1779994239000,-500.0,0.00014999,2]
[423249409,1779994239000,-500.0,0.00014999,2]
[423249398,1779994239000,-500.0,0.00014998,2]
[423249405,1779994239000,-625.7470238,0.00014999,2]
[423249400,1779994239000,-500.0,0.00014998,2]
[423249396,1779994239000,-151.0,0.00014997,2]
[423249397,1779994239000,-763.4,0.00014998,2]
[423249414,1779994239000,-500.0,0.00014999,2]
[423249407,1779994239000,-500.0,0.00014999,2]
[423249412,1779994239000,-503.8437914,0.00014999,2]
[423249427,1779994239000,-500.0,0.00014999,2]
[423249406,1779994239000,-500.0,0.00014999,2]
[423249417,1779994239000,-500.0,0.00014999,2]
[423249419,1779994239000,-500.0,0.00014999,2]
[423249429,1779994239000,-399.87378065,0.00014999,2]
[423249418,1779994239000,-500.0,0.00014999,2]
[423249420,1779994239000,-398.26046862,0.00014999,2]
[423249421,1779994239000,-409.57823791,0.00014999,2]
[423249423,1779994239000,-500.0,0.00014999,2]
[423249422,1779994239000,-500.0,0.00014999,2]
[423249430,1779994239000,-500.0,0.00014999,2]
[423249425,1779994239000,-500.0,0.00014999,2]
[423249424,1779994239000,-500.0,0.00014999,2]
[423249426,1779994239000,-500.0,0.00014999,2]
[423249399,1779994239000,-500.0,0.00014998,2]
[423249415,1779994239000,-500.0,0.00014999,2]
[423249401,1779994239000,-500.0,0.00014998,2]
[423249369,1779994239000,-4942.3311,0.000149,2]
[423249395,1779994239000,-182.74659214,0.0001499,2]
[423249368,1779994239000,-500.0,0.00014899,2]
[423249376,1779994239000,-5979.68805958,0.00014934,2]
[423249377,1779994239000,-500.0,0.00014935,2]
[423249367,1779994239000,-500.0,0.00014899,2]
[423249370,1779994239000,-4049.16805115,0.000149,2]
[423249374,1779994239000,-9360.07001736,0.000149,2]
[423249372,1779994239000,-5000.0,0.000149,2]
[423249378,1779994239000,-500.0,0.00014935,2]
[423249373,1779994239000,-230.61190747,0.000149,2]
[423249371,1779994239000,-425.99447248,0.000149,2]
[423249375,1779994239000,-546.76739547,0.000149,2]
[423249379,1779994239000,-500.0,0.00014935,2]
[423249381,1779994239000,-500.0,0.00014935,2]
[423249382,1779994239000,-7698.78970188,0.0001494,2]
[423249384,1779994239000,-162107.9987575,0.00014962,2]
[423249383,1779994239000,-3420.7628324,0.00014946,2]
[423249387,1779994239000,-3296.9851231,0.00014977,2]
[423249380,1779994239000,-168.15877499,0.00014935,2]
[423249389,1779994239000,-10000.0,0.00014984,2]
[423249385,1779994239000,-998.2027721,0.00014971,2]
[423249386,1779994239000,-38701.8744592,0.00014977,2]
[423249391,1779994239000,-267.0128583,0.00014986,2]
[423249390,1779994239000,-198.21028094,0.00014986,2]
[423249388,1779994239000,-3484.0678222,0.00014977,2]
[423249393,1779994239000,-179.73441824,0.00014986,2]
[423249403,1779994239000,-500.0,0.00014999,2]
[423249392,1779994239000,-203.05475875,0.00014986,2]
[423249394,1779994239000,-3381.4144417,0.00014989,2]
[423249404,1779994239000,-500.0,0.00014999,2]
[423249402,1779994239000,-500.0,0.00014999,2]
[423249431,1779994239000,-500.0,0.00014999,2]
[423249428,1779994239000,-500.0,0.00014999,2]
[423249435,1779994239000,-500.0,0.00014999,2]
[423249468,1779994239000,-500.0,0.00014999,2]
[423249467,1779994239000,-500.0,0.00014999,2]
[423249466,1779994239000,-500.0,0.00014999,2]
[423249472,1779994239000,-220.16,0.00014999,2]
[423249482,1779994239000,-500.0,0.00014999,2]
[423249474,1779994239000,-500.0,0.00014999,2]
[423249484,1779994239000,-226.61703358,0.00014999,2]
[423249485,1779994239000,-500.0,0.00014999,2]
[423249486,1779994239000,-500.0,0.00014999,2]
[423249483,1779994239000,-500.0,0.00014999,2]
[423249477,1779994239000,-500.0,0.00014999,2]
[423249478,1779994239000,-500.0,0.00014999,2]
[423249479,1779994239000,-500.0,0.00014999,2]
[423249480,1779994239000,-500.0,0.00014999,2]
[423249481,1779994239000,-500.0,0.00014999,2]
[423249487,1779994239000,-500.0,0.00014999,2]
[423249489,1779994239000,-574.351157,0.00014999,2]
[423249491,1779994239000,-763.4,0.00014999,2]
[423249492,1779994239000,-763.4,0.00014999,2]
[423249490,1779994239000,-763.4,0.00014999,2]
[423249498,1779994239000,-763.4,0.00014999,2]
[423249488,1779994239000,-500.0,0.00014999,2]
[423249500,1779994239000,-763.4,0.00014999,2]
[423249499,1779994239000,-763.4,0.00014999,2]
[423249493,1779994239000,-763.4,0.00014999,2]
[423249494,1779994239000,-763.4,0.00014999,2]
[423249433,1779994239000,-500.0,0.00014999,2]
[423249496,1779994239000,-763.4,0.00014999,2]
[423249495,1779994239000,-763.4,0.00014999,2]
[423249470,1779994239000,-500.0,0.00014999,2]
[423249469,1779994239000,-500.0,0.00014999,2]
[423249497,1779994239000,-763.4,0.00014999,2]
[423249465,1779994239000,-500.0,0.00014999,2]
[423249462,1779994239000,-500.0,0.00014999,2]
[423249432,1779994239000,-500.0,0.00014999,2]
[423249434,1779994239000,-500.0,0.00014999,2]
[423249443,1779994239000,-500.0,0.00014999,2]
[423249442,1779994239000,-330.33,0.00014999,2]
[423249437,1779994239000,-500.0,0.00014999,2]
[423249441,1779994239000,-500.0,0.00014999,2]
[423249436,1779994239000,-500.0,0.00014999,2]
[423249438,1779994239000,-500.0,0.00014999,2]
[423249439,1779994239000,-500.0,0.00014999,2]
[423249440,1779994239000,-500.0,0.00014999,2]
[423249445,1779994239000,-500.0,0.00014999,2]
[423249447,1779994239000,-500.0,0.00014999,2]
[423249454,1779994239000,-324.4704,0.00014999,2]
[423249455,1779994239000,-500.0,0.00014999,2]
[423249444,1779994239000,-500.0,0.00014999,2]
[423249451,1779994239000,-500.0,0.00014999,2]
[423249464,1779994239000,-500.0,0.00014999,2]
[423249446,1779994239000,-500.0,0.00014999,2]
[423249459,1779994239000,-500.0,0.00014999,2]
[423249463,1779994239000,-500.0,0.00014999,2]
[423249460,1779994239000,-500.0,0.00014999,2]
[423249458,1779994239000,-547.02,0.00014999,2]
[423249461,1779994239000,-500.0,0.00014999,2]
[423249457,1779994239000,-342.68,0.00014999,2]
[423249450,1779994239000,-500.0,0.00014999,2]
[423249448,1779994239000,-500.0,0.00014999,2]
[423249456,1779994239000,-500.0,0.00014999,2]
[423249452,1779994239000,-500.0,0.00014999,2]
[423249453,1779994239000,-500.0,0.00014999,2]
[423249449,1779994239000,-500.0,0.00014999,2]
[423249516,1779994240000,-500.0,0.00014999,2]
[423249512,1779994240000,-500.0,0.00014999,2]
[423249520,1779994240000,-500.0,0.00014999,2]
[423249517,1779994240000,-500.0,0.00014999,2]
[423249521,1779994240000,-500.0,0.00014999,2]
[423249515,1779994240000,-500.0,0.00014999,2]
[423249514,1779994240000,-500.0,0.00014999,2]
[423249509,1779994240000,-763.4,0.00014999,2]
[423249511,1779994240000,-763.5,0.00014999,2]
[423249506,1779994240000,-763.4,0.00014999,2]
[423249502,1779994240000,-763.4,0.00014999,2]
[423249507,1779994240000,-763.4,0.00014999,2]
[423249508,1779994240000,-763.4,0.00014999,2]
[423249510,1779994240000,-763.4,0.00014999,2]
[423249505,1779994240000,-763.4,0.00014999,2]
[423249503,1779994240000,-763.4,0.00014999,2]
[423249504,1779994240000,-763.4,0.00014999,2]
[423249501,1779994240000,-763.4,0.00014999,2]
[423249519,1779994240000,-500.0,0.00014999,2]
[423249513,1779994240000,-567.76,0.00014999,2]
[423249518,1779994240000,-500.0,0.00014999,2]
[423249525,1779994240000,-500.0,0.00014999,2]
[423249523,1779994240000,-500.0,0.00014999,2]
[423249540,1779994240000,-5130166.05743488,0.00015,2]
[423249522,1779994240000,-500.0,0.00014999,2]
[423249542,1779994240000,-389.74,0.00015,2]
[423249541,1779994240000,-2992154.98661641,0.00015,2]
[423249539,1779994240000,-2064.0,0.00015,5]
[423249537,1779994240000,-604.32063976,0.00014999,2]
[423249536,1779994240000,-500.0,0.00014999,2]
[423249538,1779994240000,-2575.0,0.00015,5]
[423249534,1779994240000,-284.04184663,0.00014999,2]
[423249543,1779994240000,-1335.19951,0.00015,2]
[423249532,1779994240000,-500.0,0.00014999,2]
[423249535,1779994240000,-500.0,0.00014999,2]
[423249528,1779994240000,-500.0,0.00014999,2]
[423249531,1779994240000,-500.0,0.00014999,2]
[423249530,1779994240000,-500.0,0.00014999,2]
[423249524,1779994240000,-500.0,0.00014999,2]
[423249529,1779994240000,-500.0,0.00014999,2]
[423249533,1779994240000,-531.91858761,0.00014999,2]
[423249527,1779994240000,-500.0,0.00014999,2]
[423249526,1779994240000,-500.0,0.00014999,2]
[423249548,1779994242000,-200.0,0.00015,2]
[423249560,1779994242000,-2747.24637233,0.00015109,2]
[423249559,1779994242000,-900.0,0.00015068,2]
[423249556,1779994242000,-152.0,0.00015009,30]
[423249549,1779994242000,-273.23,0.00015,2]
[423249552,1779994242000,-151.0,0.00015,2]
[423249553,1779994242000,-617.90131,0.00015,2]
[423249550,1779994242000,-200.0,0.00015,2]
[423249554,1779994242000,-617.90131,0.00015,2]
[423249547,1779994242000,-2000.0,0.00015,2]
[423249557,1779994242000,-330.0,0.00015014,3]
[423249545,1779994242000,-308.53896018,0.000149,2]
[423249546,1779994242000,-2123947.31435877,0.00015,2]
[423249544,1779994242000,-2110.12454954,0.00014799,2]
[423249551,1779994242000,-15000.0,0.00015,3]
[423249555,1779994242000,-617.90131,0.00015,2]
[423249570,1779994242000,-3678.93750429,0.000154,2]
[423249561,1779994242000,-1283.13161698,0.00015115,2]
[423249562,1779994242000,-1353.20417073,0.0001515,2]
[423249573,1779994242000,-1544.0,0.00015416,2]
[423249577,1779994242000,-150.0,0.00015645,7]
[423249571,1779994242000,-1544.0,0.00015416,2]
[423249572,1779994242000,-1544.0,0.00015416,2]
[423249576,1779994242000,-200.0,0.00015609,2]
[423249569,1779994242000,-200.0,0.00015301,2]
[423249575,1779994242000,-3678.93750429,0.000156,2]
[423249567,1779994242000,-3678.93750429,0.000153,2]
[423249568,1779994242000,-200.0,0.00015301,2]
[423249566,1779994242000,-433.0,0.00015255,2]
[423249565,1779994242000,-996.0,0.00015246,2]
[423249564,1779994242000,-200.0,0.0001515,2]
[423249563,1779994242000,-200.0,0.0001515,2]
[423249558,1779994242000,-711.40151675,0.0001504,2]
[423249574,1779994242000,-200.0,0.00015455,2]
[423249620,1779994243000,-200.0,0.00016438,2]
[423249625,1779994243000,-200.0,0.00016438,2]
[423249623,1779994243000,-200.0,0.00016438,2]
[423249622,1779994243000,-200.0,0.00016438,2]
[423249619,1779994243000,-200.0,0.00016438,2]
[423249617,1779994243000,-200.0,0.00016438,2]
[423249618,1779994243000,-200.0,0.00016438,2]
[423249615,1779994243000,-200.0,0.00016438,2]
[423249612,1779994243000,-200.0,0.00016438,2]
[423249624,1779994243000,-200.0,0.00016438,2]
[423249621,1779994243000,-200.0,0.00016438,2]
[423249626,1779994243000,-200.0,0.00016438,2]
[423249634,1779994243000,-3678.93750429,0.000165,2]
[423249628,1779994243000,-200.0,0.00016438,2]
[423249633,1779994243000,-288.760542,0.00016438,2]
[423249637,1779994243000,-168.11,0.00016712,2]
[423249630,1779994243000,-200.0,0.00016438,2]
[423249629,1779994243000,-200.0,0.00016438,2]
[423249631,1779994243000,-200.0,0.00016438,2]
[423249613,1779994243000,-200.0,0.00016438,2]
[423249635,1779994243000,-736.0,0.00016551,2]
[423249636,1779994243000,-3678.93750429,0.000167,2]
[423249638,1779994243000,-273.23,0.000168,2]
[423249641,1779994243000,-1000.0,0.000168,2]
[423249632,1779994243000,-200.0,0.00016438,2]
[423249614,1779994243000,-200.0,0.00016438,2]
[423249605,1779994243000,-200.0,0.00016438,2]
[423249607,1779994243000,-200.0,0.00016438,2]
[423249579,1779994243000,-3678.93750429,0.000157,2]
[423249578,1779994243000,-151.47665671,0.00015645,7]
[423249580,1779994243000,-226.634746,0.00015794,2]
[423249582,1779994243000,-151.0,0.00016,4]
[423249588,1779994243000,-2000.0,0.00016066,2]
[423249586,1779994243000,-300.0,0.00016,2]
[423249592,1779994243000,-700.0,0.00016211,2]
[423249583,1779994243000,-3678.93750429,0.00016,2]
[423249584,1779994243000,-215.50460005,0.00016,3]
[423249581,1779994243000,-3678.93750429,0.000159,2]
[423249590,1779994243000,-506.61237074,0.00016125,2]
[423249606,1779994243000,-200.0,0.00016438,2]
[423249591,1779994243000,-3678.93750429,0.000162,2]
[423249596,1779994243000,-2380.5,0.00016438,2]
[423249594,1779994243000,-3678.93750429,0.000164,2]
[423249597,1779994243000,-173.0,0.00016438,2]
[423249598,1779994243000,-434.0,0.00016438,2]
[423249602,1779994243000,-200.0,0.00016438,2]
[423249642,1779994243000,-151.0,0.00017,4]
[423249603,1779994243000,-200.0,0.00016438,2]
[423249599,1779994243000,-516.91265566,0.00016438,2]
[423249601,1779994243000,-230.27,0.00016438,2]
[423249600,1779994243000,-900.0,0.00016438,2]
[423249604,1779994243000,-200.0,0.00016438,2]
[423249593,1779994243000,-162.82,0.00016337,2]
[423249639,1779994243000,-315.0,0.000168,2]
[423249616,1779994243000,-200.0,0.00016438,2]
[423249650,1779994243000,-1668.16804168,0.00018,2]
[423249677,1779994243000,-932.0,0.00018851,2]
[423249674,1779994243000,-1225.0,0.00018851,2]
[423249673,1779994243000,-525.0,0.00018851,2]
[423249676,1779994243000,-6064.0,0.00018851,2]
[423249685,1779994243000,-1213.0,0.00019,2]
[423249681,1779994243000,-157.0,0.00019,2]
[423249690,1779994243000,-209.0,0.00019,2]
[423249691,1779994243000,-194.0,0.00019,2]
[423249688,1779994243000,-218.0,0.00019,2]
[423249680,1779994243000,-207.36459906,0.00019,2]
[423249686,1779994243000,-151.0,0.00019,2]
[423249683,1779994243000,-172.37026925,0.00019,2]
[423249689,1779994243000,-915.0,0.00019,2]
[423249682,1779994243000,-707.0,0.00019,2]
[423249687,1779994243000,-1033.001326,0.00019,2]
[423249693,1779994243000,-45853.76252045,0.00019,2]
[423249694,1779994243000,-442.0,0.00019,2]
[423249696,1779994243000,-15147.07,0.00019178,2]
[423249692,1779994243000,-2052.0,0.00019,2]
[423249695,1779994243000,-160.93281423,0.00019178,2]
[423249700,1779994243000,-151.0,0.00019178,2]
[423249697,1779994243000,-151.0,0.00019178,2]
[423249698,1779994243000,-151.0,0.00019178,2]
[423249640,1779994243000,-309.0,0.000168,2]
[423249699,1779994243000,-151.0,0.00019178,2]
[423249669,1779994243000,-928.0,0.00018851,2]
[423249679,1779994243000,-249.81583079,0.00019,4]
[423249684,1779994243000,-332.0,0.00019,2]
[423249675,1779994243000,-250.0,0.00018851,2]
[423249643,1779994243000,-434.0,0.0001726,2]
[423249644,1779994243000,-956.49,0.00017572,2]
[423249671,1779994243000,-1272.0,0.00018851,2]
[423249649,1779994243000,-151.0,0.00018,4]
[423249648,1779994243000,-1252.0,0.00017964,2]
[423249645,1779994243000,-913.97,0.00017572,2]
[423249646,1779994243000,-2000.0,0.00017673,2]
[423249647,1779994243000,-169.44,0.00017927,2]
[423249652,1779994243000,-350.0,0.00018,2]
[423249663,1779994243000,-1668.16804168,0.000187,2]
[423249651,1779994243000,-1937.82549888,0.00018,2]
[423249653,1779994243000,-1668.16804168,0.000182,2]
[423249654,1779994243000,-1937.82549888,0.000182,2]
[423249662,1779994243000,-500.0,0.00018512,2]
[423249666,1779994243000,-3549.0,0.00018851,2]
[423249656,1779994243000,-9194.4,0.00018356,2]
[423249657,1779994243000,-1668.16804168,0.000184,2]
[423249655,1779994243000,-425.99447248,0.00018233,2]
[423249660,1779994243000,-1668.16804168,0.000185,2]
[423249661,1779994243000,-1937.82549888,0.000185,2]
[423249659,1779994243000,-2380.5,0.0001841,2]
[423249664,1779994243000,-1937.82549888,0.000187,2]
[423249658,1779994243000,-1937.82549888,0.000184,2]
[423249678,1779994243000,-168.02,0.00018883,2]
[423249665,1779994243000,-1356.0,0.00018851,2]
[423249743,1779994244000,-151.0,0.00019178,2]
[423249739,1779994244000,-151.0,0.00019178,2]
[423249734,1779994244000,-151.0,0.00019178,2]
[423249736,1779994244000,-151.0,0.00019178,2]
[423249742,1779994244000,-151.0,0.00019178,2]
[423249737,1779994244000,-151.0,0.00019178,2]
[423249740,1779994244000,-151.0,0.00019178,2]
[423249733,1779994244000,-151.0,0.00019178,2]
[423249741,1779994244000,-151.0,0.00019178,2]
[423249746,1779994244000,-151.0,0.00019178,2]
[423249738,1779994244000,-151.0,0.00019178,2]
[423249748,1779994244000,-151.0,0.00019178,2]
[423249765,1779994244000,-151.0,0.00019178,2]
[423249745,1779994244000,-151.0,0.00019178,2]
[423249747,1779994244000,-151.0,0.00019178,2]
[423249749,1779994244000,-151.0,0.00019178,2]
[423249752,1779994244000,-151.0,0.00019178,2]
[423249750,1779994244000,-151.0,0.00019178,2]
[423249753,1779994244000,-151.0,0.00019178,2]
[423249751,1779994244000,-151.0,0.00019178,2]
[423249755,1779994244000,-151.0,0.00019178,2]
[423249756,1779994244000,-151.0,0.00019178,2]
[423249758,1779994244000,-151.0,0.00019178,2]
[423249766,1779994244000,-151.0,0.00019178,2]
[423249731,1779994244000,-151.0,0.00019178,2]
[423249757,1779994244000,-151.0,0.00019178,2]
[423249744,1779994244000,-151.0,0.00019178,2]
[423249732,1779994244000,-151.0,0.00019178,2]
[423249705,1779994244000,-151.0,0.00019178,2]
[423249726,1779994244000,-151.0,0.00019178,2]
[423249762,1779994244000,-151.0,0.00019178,2]
[423249703,1779994244000,-151.0,0.00019178,2]
[423249702,1779994244000,-151.0,0.00019178,2]
[423249701,1779994244000,-151.0,0.00019178,2]
[423249704,1779994244000,-151.0,0.00019178,2]
[423249715,1779994244000,-151.0,0.00019178,2]
[423249706,1779994244000,-151.0,0.00019178,2]
[423249708,1779994244000,-151.0,0.00019178,2]
[423249707,1779994244000,-151.0,0.00019178,2]
[423249709,1779994244000,-151.0,0.00019178,2]
[423249716,1779994244000,-151.0,0.00019178,2]
[423249710,1779994244000,-151.0,0.00019178,2]
[423249711,1779994244000,-151.0,0.00019178,2]
[423249730,1779994244000,-151.0,0.00019178,2]
[423249713,1779994244000,-151.0,0.00019178,2]
[423249714,1779994244000,-151.0,0.00019178,2]
[423249717,1779994244000,-151.0,0.00019178,2]
[423249719,1779994244000,-151.0,0.00019178,2]
[423249720,1779994244000,-151.0,0.00019178,2]
[423249721,1779994244000,-151.0,0.00019178,2]
[423249722,1779994244000,-151.0,0.00019178,2]
[423249729,1779994244000,-151.0,0.00019178,2]
[423249724,1779994244000,-151.0,0.00019178,2]
[423249718,1779994244000,-151.0,0.00019178,2]
[423249728,1779994244000,-151.0,0.00019178,2]
[423249723,1779994244000,-151.0,0.00019178,2]
[423249727,1779994244000,-151.0,0.00019178,2]
[423249725,1779994244000,-151.0,0.00019178,2]
[423249712,1779994244000,-151.0,0.00019178,2]
[423249760,1779994244000,-151.0,0.00019178,2]
[423249735,1779994244000,-151.0,0.00019178,2]
[423249754,1779994244000,-151.0,0.00019178,2]
[423249798,1779994244000,-441.0,0.00019493,2]
[423249797,1779994244000,-2000.0,0.0001928,2]
[423249802,1779994244000,-199.29868437,0.0002,2]
[423249796,1779994244000,-151.0,0.00019178,2]
[423249800,1779994244000,-152.74,0.00019894,2]
[423249794,1779994244000,-151.0,0.00019178,2]
[423249801,1779994244000,-5284.10140603,0.0002,2]
[423249791,1779994244000,-151.0,0.00019178,2]
[423249805,1779994244000,-200.0,0.0002,2]
[423249815,1779994244000,-1213.0,0.0002,2]
[423249804,1779994244000,-1312.94656269,0.0002,2]
[423249806,1779994244000,-1059.80881447,0.0002,2]
[423249810,1779994244000,-1415.91657693,0.0002,2]
[423249793,1779994244000,-151.0,0.00019178,2]
[423249811,1779994244000,-157.0,0.0002,2]
[423249808,1779994244000,-5285.80955307,0.0002,2]
[423249816,1779994244000,-151.0,0.0002,2]
[423249807,1779994244000,-2638.59734204,0.0002,2]
[423249813,1779994244000,-332.0,0.0002,2]
[423249812,1779994244000,-707.0,0.0002,2]
[423249814,1779994244000,-660.0,0.0002,2]
[423249817,1779994244000,-273.23,0.0002,2]
[423249818,1779994244000,-218.0,0.0002,2]
[423249822,1779994244000,-2052.0,0.0002,2]
[423249819,1779994244000,-915.0,0.0002,2]
[423249761,1779994244000,-151.0,0.00019178,2]
[423249820,1779994244000,-209.0,0.0002,2]
[423249821,1779994244000,-194.0,0.0002,2]
[423249809,1779994244000,-2000.0,0.0002,2]
[423249799,1779994244000,-162.82,0.00019605,2]
[423249823,1779994244000,-442.0,0.0002,2]
[423249792,1779994244000,-151.0,0.00019178,2]
[423249795,1779994244000,-151.0,0.00019178,2]
[423249764,1779994244000,-151.0,0.00019178,2]
[423249763,1779994244000,-151.0,0.00019178,2]
[423249767,1779994244000,-151.0,0.00019178,2]
[423249770,1779994244000,-151.0,0.00019178,2]
[423249772,1779994244000,-151.0,0.00019178,2]
[423249769,1779994244000,-151.0,0.00019178,2]
[423249771,1779994244000,-151.0,0.00019178,2]
[423249774,1779994244000,-151.0,0.00019178,2]
[423249777,1779994244000,-151.0,0.00019178,2]
[423249776,1779994244000,-151.0,0.00019178,2]
[423249773,1779994244000,-151.0,0.00019178,2]
[423249779,1779994244000,-151.0,0.00019178,2]
[423249768,1779994244000,-151.0,0.00019178,2]
[423249759,1779994244000,-151.0,0.00019178,2]
[423249775,1779994244000,-151.0,0.00019178,2]
[423249778,1779994244000,-151.0,0.00019178,2]
[423249787,1779994244000,-151.0,0.00019178,2]
[423249790,1779994244000,-151.0,0.00019178,2]
[423249783,1779994244000,-151.0,0.00019178,2]
[423249789,1779994244000,-151.0,0.00019178,2]
[423249788,1779994244000,-151.0,0.00019178,2]
[423249803,1779994244000,-10533.5090023,0.0002,2]
[423249784,1779994244000,-151.0,0.00019178,2]
[423249785,1779994244000,-151.0,0.00019178,2]
[423249781,1779994244000,-151.0,0.00019178,2]
[423249782,1779994244000,-151.0,0.00019178,2]
[423249780,1779994244000,-151.0,0.00019178,2]